[Event "IND-ch Women 2019"]
[Site "Karaikkudi"]
[Date "2019.07.19"]
[Round "1.2"]
[White "Kulkarni Bhakti"]
[Black "Ananya Bothra"]
[Result "1-0"]
[ECO "D35"]
[WhiteElo "2388"]
[BlackElo "1681"]
[Annotator "RC"]
[PlyCount "67"]
[EventDate "2019.07.19"]
[EventType "swiss"]
[EventCountry "IND"]
[SourceTitle "playchess.com"]
[Source "ChessBase"]
[SourceQuality "1"]
[TimeControl "40/5400+30:1800+30"]

1. d4 {[%emt 0:00:00]} d5 {[%emt 0:00:07]} 2. c4 {[%emt 0:00:40]} e6 {[%emt 0:00:38]} 3. Nc3 {[%emt 0:00:39]} Nf6 {[%emt 0:00:32]} 4. Bf4 {[%emt 0:04:30]} Be7 {[%emt 0:04:41]} 5. e3 {[%emt 0:00:14]} O-O {[%emt 0:01:37]} 6. c5 {[%emt 0:01:16]} c6 {[%emt 0:07:39]} 7. h3 {[%emt 0:01:02]} b6 {[%emt 0:02:37]} 8. b4 {[%emt 0:00:40]} a5 {[%emt 0:01:47]} 9. a3 {[%emt 0:00:06]} Ba6 {[%emt 0:02:20]} 10. Bxa6 {[%emt 0:02:12]} Nxa6 {[%emt 0:00:57]} 11. Rb1 {[%emt 0:00:19]} axb4 {[%emt 0:05:32]} 12. axb4 {[%emt 0:01:01]} Nd7 {[%emt 0:13:23]} 13. Nf3 {[%emt 0:01:05]} f6 {[%emt 0:01:36]} 14. O-O {[%emt 0:09:38]} e5 {[%emt 0:08:13]} 15. dxe5 {[%emt 0:01:39]} fxe5 {[%emt 0:00:45]} 16. Nxe5 {[%emt 0:00:34]} Nxe5 {[%emt 0:00:09]} 17. Bxe5 {[%emt 0:00:07]} bxc5 {[%emt 0:00:30]} 18. b5 {[%emt 0:03:52]} Nb4 {[%emt 0:04:12]} 19. bxc6 {[%emt 0:03:08]} Bf6 {[%emt 0:02:08]} 20. c7 {[%emt 0:05:53]} Qd7 {[%emt 0:01:05]} 21. Bxf6 {[%emt 0:02:31]} Rxf6 {[%emt 0:00:18]} 22. Ne4 {[%emt 0:09:06]} Rc6 {[%emt 0:01:22]} 23. Nxc5 {[%emt 0:01:28]} Rxc5 {[%emt 0:03:04]} 24. Rxb4 {[%emt 0:00:06]} Qxc7 {[%emt 0:00:06]} 25. Rd4 {[%emt 0:01:34]} Qf7 {[%emt 0:02:34]} 26. Qb3 {[%emt 0:04:16]} Rf8 {[%emt 0:02:28]} 27. Rf4 {[%emt 0:01:37]} Qc7 {[%emt 0:00:21]} 28. Rxf8+ {[%emt 0:02:00]} Kxf8 {[%emt 0:00:08]} 29. Rd1 {[%emt 0:00:26]} g6 {[%emt 0:01:28]} 30. Rxd5 {[%emt 0:01:37]} Rxd5 {[%emt 0:04:56]} 31. Qxd5 {[%emt 0:00:02]} Qc1+ {[%emt 0:00:30]} 32. Kh2 {[%emt 0:00:02]} Qc2 {[%emt 0:00:50]} 33. Qd6+ {[%emt 0:01:11]} Kg7 {[%emt 0:00:28]} 34. Qf4 {[%emt 0:00:46]} 1-0

[Event "IND-ch Women 2019"]
[Site "Karaikkudi"]
[Date "2019.07.19"]
[Round "1.4"]
[White "Vijayalakshmi, Subbaraman"]
[Black "Chinnam Vyshnavi"]
[Result "1-0"]
[ECO "D02"]
[WhiteElo "2357"]
[BlackElo "1664"]
[Annotator "RC"]
[PlyCount "113"]
[EventDate "2019.07.19"]
[EventType "swiss"]
[EventCountry "IND"]
[SourceTitle "playchess.com"]
[Source "ChessBase"]
[SourceQuality "1"]
[TimeControl "40/5400+30:1800+30"]

1. d4 {[%emt 0:00:46]} Nf6 {[%emt 0:00:00]} 2. Nf3 {[%emt 0:00:26]} g6 {[%emt 0:00:41]} 3. g3 {[%emt 0:00:21]} Bg7 {[%emt 0:00:27]} 4. Bg2 {[%emt 0:00:15]} O-O {[%emt 0:00:44]} 5. O-O {[%emt 0:00:11]} d5 {[%emt 0:00:13]} 6. Be3 {[%emt 0:00:10]} c6 {[%emt 0:07:16]} 7. Qc1 {[%emt 0:01:18]} b6 {[%emt 0:04:08]} 8. Bh6 {[%emt 0:00:31]} Bb7 {[%emt 0:02:24]} 9. c4 {[%emt 0:03:57]} Nbd7 {[%emt 0:04:18]} 10. Rd1 {[%emt 0:01:56]} Rc8 {[%emt 0:03:55]} 11. Nc3 {[%emt 0:02:38]} Ba6 {[%emt 0:02:13]} 12. b3 {[%emt 0:02:24]} e6 {[%emt 0:06:30]} 13. Bxg7 {[%emt 0:05:40]} Kxg7 {[%emt 0:00:11]} 14. Qa3 {[%emt 0:00:28]} Nb8 {[%emt 0:01:46]} 15. Rac1 {[%emt 0:00:43]} dxc4 {[%emt 0:03:10]} 16. bxc4 {[%emt 0:02:13]} Bxc4 {[%emt 0:00:25]} 17. Ne5 {[%emt 0:02:54]} Ba6 {[%emt 0:01:42]} 18. Nxc6 {[%emt 0:01:08]} Nxc6 {[%emt 0:00:08]} 19. Qxa6 {[%emt 0:00:07]} Qe7 {[%emt 0:06:50]} 20. e3 {[%emt 0:05:12]} Rfd8 {[%emt 0:01:37]} 21. Qe2 {[%emt 0:02:12]} Nd5 {[%emt 0:01:28]} 22. Nxd5 {[%emt 0:03:30]} exd5 {[%emt 0:01:55]} 23. h4 {[%emt 0:00:34]} h5 {[%emt 0:03:11]} 24. Bh3 {[%emt 0:02:12]} f5 {[%emt 0:02:42]} 25. Bf1 {[%emt 0:01:52]} Rd6 {[%emt 0:06:49]} 26. Rc2 {[%emt 0:02:38]} Rf8 {[%emt 0:02:17]} 27. Qb5 {[%emt 0:05:34]} Rff6 {[%emt 0:08:47]} 28. Rdc1 {[%emt 0:00:45]} Qe6 {[%emt 0:00:32]} 29. Qa4 {[%emt 0:00:42]} Na5 {[%emt 0:08:12]} 30. Rc8 {[%emt 0:02:42]} Rd7 {[%emt 0:00:53]} 31. Bb5 {[%emt 0:00:28]} Re7 {[%emt 0:00:48]} 32. Qa3 {[%emt 0:02:32]} f4 {[%emt 0:02:56]} 33. exf4 {[%emt 0:00:24]} Nb7 {[%emt 0:04:21]} 34. R8c7 {[%emt 0:03:54]} Nd6 {[%emt 0:00:59]} 35. Qxa7 {[%emt 0:01:17]} Rff7 {[%emt 0:00:10]} 36. Rxe7 {[%emt 0:02:09]} Rxe7 {[%emt 0:00:44]} 37. Qxb6 {[%emt 0:00:30]} Kh6 {[%emt 0:02:26]} 38. Bd3 {[%emt 0:00:32]} Rb7 {[%emt 0:01:00]} 39. Qd8 {[%emt 0:00:15]} Nf7 {[%emt 0:01:39]} 40. Qg8 {[%emt 0:00:00]} Re7 {[%emt 0:00:00]} 41. Qf8+ {[%emt 0:01:49]} Kh7 {[%emt 0:03:34]} 42. f5 {[%emt 0:00:13]} gxf5 {[%emt 0:02:04]} 43. Bxf5+ {[%emt 0:00:17]} Qxf5 {[%emt 0:00:05]} 44. Qxe7 {[%emt 0:00:06]} Kg7 {[%emt 0:00:24]} 45. Rc7 {[%emt 0:00:07]} Qb1+ {[%emt 0:00:42]} 46. Kg2 {[%emt 0:00:07]} Qe4+ {[%emt 0:00:06]} 47. Qxe4 {[%emt 0:00:05]} dxe4 {[%emt 0:00:04]} 48. a4 {[%emt 0:00:06]} Kf6 {[%emt 0:00:06]} 49. a5 {[%emt 0:00:18]} Nd6 {[%emt 0:00:11]} 50. a6 {[%emt 0:00:04]} Nb5 {[%emt 0:00:04]} 51. Rb7 {[%emt 0:00:07]} Nd6 {[%emt 0:00:06]} 52. Rb6 {[%emt 0:00:05]} Ke7 {[%emt 0:00:06]} 53. a7 {[%emt 0:00:05]} Nc8 {[%emt 0:00:07]} 54. Rb7+ {[%emt 0:00:04]} Kd8 {[%emt 0:00:21]} 55. a8=Q {[%emt 0:00:09]} e3 {[%emt 0:00:07]} 56. fxe3 {[%emt 0:00:04]} Ke8 {[%emt 0:00:05]} 57. Qxc8# {[%emt 0:00:04]} 1-0

[Event "IND-ch Women 2019"]
[Site "Karaikkudi"]
[Date "2019.07.19"]
[Round "1.7"]
[White "Senthamizh Yazhini S"]
[Black "Priyanka Nutakki"]
[Result "1-0"]
[ECO "C11"]
[WhiteElo "1622"]
[BlackElo "2293"]
[Annotator "ChessBase"]
[PlyCount "75"]
[EventDate "2019.07.19"]
[EventType "swiss"]
[EventCountry "IND"]
[SourceTitle "playchess.com"]
[Source "ChessBase"]
[SourceQuality "1"]
[TimeControl "40/5400+30:1800+30"]

1. e4 {[%emt 0:00:00]} e6 {[%emt 0:00:00]} 2. d4 {[%emt 0:00:00]} d5 {[%emt 0:00:00]} 3. Nc3 {[%emt 0:00:00]} Nf6 {[%emt 0:00:02]} 4. e5 {[%emt 0:00:05]} Nfd7 {[%emt 0:00:05]} 5. f4 {[%emt 0:00:11]} c5 {[%emt 0:00:06]} 6. Nf3 {[%emt 0:00:03]} Nc6 {[%emt 0:00:06]} 7. Be3 {[%emt 0:00:05]} Be7 {[%emt 0:00:17]} 8. Qd2 {[%emt 0:00:09]} O-O {[%emt 0:00:49]} 9. dxc5 {[%emt 0:00:14]} Bxc5 {[%emt 0:02:39]} 10. Bxc5 {[%emt 0:03:37]} Nxc5 {[%emt 0:00:03]} 11. O-O-O {[%emt 0:00:33]} a6 {[%emt 0:01:37]} 12. g4 {[%emt 0:10:38]} f6 {[%emt 0:05:16]} 13. Bg2 {[%emt 0:06:57]} b5 {[%emt 0:14:51]} 14. exf6 {[%emt 0:10:09]} gxf6 {[%emt 0:08:56]} 15. Nd4 {[%emt 0:07:44]} Na5 {[%emt 0:17:10]} 16. Nb3 {[%emt 0:15:50]} Naxb3+ {[%emt 0:20:45]} 17. axb3 {[%emt 0:02:26]} Bb7 {[%emt 0:00:49]} 18. f5 {[%emt 0:05:12]} b4 {[%emt 0:03:45]} 19. Ne2 {[%emt 0:08:13]} Qc7 {[%emt 0:05:09]} 20. Kb1 {[%emt 0:02:02]} a5 {[%emt 0:11:48]} 21. fxe6 {[%emt 0:11:07]} a4 {[%emt 0:01:12]} 22. e7 {[%emt 0:03:11]} Qxe7 {[%emt 0:00:13]} 23. Bxd5+ {[%emt 0:00:12]} Bxd5 {[%emt 0:00:25]} 24. Qxd5+ {[%emt 0:00:06]} Kh8 {[%emt 0:00:04]} 25. Nd4 {[%emt 0:04:41]} axb3 {[%emt 0:00:27]} 26. Nxb3 {[%emt 0:00:51]} Nxb3 {[%emt 0:00:19]} 27. Qxb3 {[%emt 0:01:25]} Ra6 {[%emt 0:01:18]} 28. c4 {[%emt 0:02:29]} bxc3 {[%emt 0:03:13]} 29. Qxc3 {[%emt 0:00:22]} Rfa8 {[%emt 0:00:41]} 30. Rhe1 {[%emt 0:00:50]} Qf7 {[%emt 0:01:00]} 31. Rd3 {[%emt 0:05:03]} Ra4 {[%emt 0:00:49]} 32. b3 {[%emt 0:00:54]} R4a6 {[%emt 0:01:31]} 33. g5 {[%emt 0:00:25]} Qg6 {[%emt 0:00:30]} 34. Red1 {[%emt 0:00:19]} Rd8 {[%emt 0:00:34]} 35. Kb2 {[%emt 0:00:24]} Rda8 {[%emt 0:00:25]} 36. Rd8+ {[%emt 0:00:19]} Rxd8 {[%emt 0:00:05]} 37. Rxd8+ {[%emt 0:00:02]} Kg7 {[%emt 0:00:01]} 38. Rd7+ {[%emt 0:00:12]} 1-0

[Event "IND-ch Women 2019"]
[Site "Karaikkudi"]
[Date "2019.07.19"]
[Round "1.11"]
[White "Nisha, N. Patkar"]
[Black "Mahalakshmi D M"]
[Result "0-1"]
[ECO "B13"]
[WhiteElo "1596"]
[BlackElo "1145"]
[Annotator "NA"]
[PlyCount "88"]
[EventDate "2019.07.19"]
[EventType "swiss"]
[EventCountry "IND"]
[SourceTitle "playchess.com"]
[Source "ChessBase"]
[SourceQuality "1"]
[TimeControl "40/5400+30:1800+30"]

1. e4 {[%emt 0:00:00]} c6 {[%emt 0:00:00]} 2. d4 {[%emt 0:00:00]} d5 {[%emt 0:04:16]} 3. exd5 {[%emt 0:00:12]} cxd5 {[%emt 0:00:03]} 4. c4 {[%emt 0:00:05]} Nf6 {[%emt 0:00:34]} 5. Nc3 {[%emt 0:00:13]} Nc6 {[%emt 0:00:06]} 6. Bg5 {[%emt 0:00:05]} Be6 {[%emt 0:07:18]} 7. Be2 {[%emt 0:01:59]} h6 {[%emt 0:04:27]} 8. Bxf6 {[%emt 0:10:37]} exf6 {[%emt 0:00:03]} 9. Nf3 {[%emt 0:01:19]} Bb4 {[%emt 0:04:32]} 10. O-O {[%emt 0:08:59]} Bxc3 {[%emt 0:08:01]} 11. bxc3 {[%emt 0:02:21]} dxc4 {[%emt 0:00:56]} 12. Nd2 {[%emt 0:14:15]} O-O {[%emt 0:06:49]} 13. Nxc4 {[%emt 0:08:59]} Qd7 {[%emt 0:06:13]} 14. Ne3 {[%emt 0:05:51]} Rfd8 {[%emt 0:01:05]} 15. Bf3 {[%emt 0:01:19]} Ne7 {[%emt 0:00:48]} 16. Qd2 {[%emt 0:02:37]} Rac8 {[%emt 0:02:34]} 17. Rac1 {[%emt 0:04:56]} f5 {[%emt 0:03:47]} 18. Qb2 {[%emt 0:06:35]} f4 {[%emt 0:02:53]} 19. Nc2 {[%emt 0:01:39]} Bd5 {[%emt 0:01:35]} 20. Bxd5 {[%emt 0:05:01]} Nxd5 {[%emt 0:02:47]} 21. Ne1 {[%emt 0:01:47]} Qc6 {[%emt 0:07:02]} 22. c4 {[%emt 0:03:12]} Nb6 {[%emt 0:04:26]} 23. c5 {[%emt 0:02:32]} Na4 {[%emt 0:00:26]} 24. Qb4 {[%emt 0:00:31]} a5 {[%emt 0:03:09]} 25. Qd2 {[%emt 0:02:40]} Nxc5 {[%emt 0:05:29]} 26. Nf3 {[%emt 0:06:58]} Qa4 {[%emt 0:05:22]} 27. Qxf4 {[%emt 0:05:49]} Nd3 {[%emt 0:02:20]} 28. Rxc8 {[%emt 0:00:20]} Nxf4 {[%emt 0:00:23]} 29. Rxd8+ {[%emt 0:00:04]} Kh7 {[%emt 0:00:03]} 30. d5 {[%emt 0:02:05]} Nxg2 {[%emt 0:03:51]} 31. Kxg2 {[%emt 0:02:30]} Qg4+ {[%emt 0:00:03]} 32. Kh1 {[%emt 0:00:00]} Qxf3+ {[%emt 0:00:05]} 33. Kg1 {[%emt 0:00:00]} Qf6 {[%emt 0:01:43]} 34. Rd7 {[%emt 0:00:10]} Qf5 {[%emt 0:01:19]} 35. Rc7 {[%emt 0:01:01]} Qg5+ {[%emt 0:00:32]} 36. Kh1 {[%emt 0:00:02]} Qxd5+ {[%emt 0:00:10]} 37. f3 {[%emt 0:00:10]} b5 {[%emt 0:04:18]} 38. Rf2 {[%emt 0:00:27]} h5 {[%emt 0:01:27]} 39. Rcc2 {[%emt 0:00:28]} h4 {[%emt 0:00:48]} 40. h3 {[%emt 0:00:00]} Qf5 {[%emt 0:00:00]} 41. Kh2 {[%emt 0:01:42]} Qf4+ {[%emt 0:01:06]} 42. Kh1 {[%emt 0:00:16]} Qg3 {[%emt 0:00:19]} 43. Rh2 {[%emt 0:00:57]} Qxf3+ {[%emt 0:00:33]} 44. Kg1 {[%emt 0:00:08]} Qd1+ {[%emt 0:00:06]} 0-1

[Event "IND-ch Women 2019"]
[Site "Karaikkudi"]
[Date "2019.07.19"]
[Round "1.12"]
[White "Michelle Catherina, P."]
[Black "Renganayaki V"]
[Result "1-0"]
[ECO "B38"]
[WhiteElo "2226"]
[BlackElo "1583"]
[Annotator "NA"]
[PlyCount "111"]
[EventDate "2019.07.19"]
[EventType "swiss"]
[EventCountry "IND"]
[SourceTitle "playchess.com"]
[Source "ChessBase"]
[SourceQuality "1"]
[TimeControl "40/5400+30:1800+30"]

{[%evp 12,107,41,32767,54,32767,32767,32767,32767,65,32767,32767,32767,32767,32767,56,50,54,56,58,56,44,32767,51,84,86,32767,32767,32767,32767,32767,81,32767,32767,32767,45,239,32767,32767,32767,32767,252,32767,32767,244,32767,259,231,253,208,203,32767,32767,32767,237,244,243,250,286,307,327,345,485,568,568,577,29982,920,1180,32767,32767,32767,32767,32767,32767,5273,32767,1973,1960,1262,29987,29975,29989,29990,29990,29986,29987,29988,29988,32767,32767,32767,32767,32767,32767,29992,29992,29993]} 1. e4 {[%emt 0:02:21]} c5 {[%emt 0:00:00]} 2. Nf3 {[%emt 0:00:07]} g6 {[%emt 0:00:06]} 3. d4 {[%emt 0:00:21]} cxd4 {[%emt 0:00:33]} 4. Nxd4 {[%emt 0:00:07]} Bg7 {[%emt 0:00:05]} 5. c4 {[%emt 0:00:21]} Nc6 {[%emt 0:00:45]} 6. Be3 {[%emt 0:00:19]} Nf6 {[%emt 0:00:51]} 7. Nc3 {[%emt 0:00:14]} d6 {[%emt 0:02:02]} 8. Be2 {[%emt 0:00:42]} O-O {[%emt 0:00:12]} 9. O-O {[%emt 0:00:24]} Bd7 {[%emt 0:00:15]} 10. Qd2 {[%emt 0:01:24]} Nxd4 {[%emt 0:00:14]} 11. Bxd4 {[%emt 0:00:05]} Bc6 {[%emt 0:00:10]} 12. f3 {[%emt 0:00:14]} a5 {[%emt 0:00:07]} 13. b3 {[%emt 0:02:56]} Nd7 {[%emt 0:00:14]} 14. Be3 {[%emt 0:00:40]} Nc5 {[%emt 0:00:07]} 15. Rab1 {[%emt 0:03:44]} Qb6 {[%emt 0:01:33]} 16. Rfc1 {[%emt 0:00:22]} Rfd8 {[%emt 0:05:22] B38: Sicilian: Maroczy Bind with 5...Bg7 and 7...0-0} (16... Rfc8 17. Bf1 Qb4 18. Qb2 Qb6 19. Kh1 Qd8 20. Qd2 e6 21. Bg5 Qf8 22. Rd1 h6 23. Be3 Rd8 24. a3 Nd7 25. b4 axb4 26. axb4 {0-1 (41) Wang,H (2690)-Bu,X (2713) China 2017}) 17. Rc2 {[%emt 0:07:21]} Qb4 {[%emt 0:09:15]} 18. Qc1 {[%emt 0:05:14]} Qb6 {[%emt 0:07:05]} 19. a3 {[%emt 0:06:02]} Qc7 {[%emt 0:08:21]} 20. Nd5 $146 {[%emt 0:06:42]} ({Predecessor:} 20. b4 axb4 21. axb4 Na4 22. Nd5 Bxd5 23. cxd5 Qd7 24. Rc7 {1-0 (48) Amon,N (2127)-Coklin,M (2218) Slovenia 2016}) 20... Bxd5 {[%emt 0:02:21]} 21. cxd5 {[%emt 0:02:23]} Qb8 {[%emt 0:02:29]} 22. b4 {[%emt 0:04:12]} axb4 {[%emt 0:03:10]} 23. axb4 {[%emt 0:04:47]} Na4 $2 {[%emt 0:04:18]} (23... Nd7 $14) 24. Bb5 {[%emt 0:02:42]} Bf6 {[%emt 0:52:25]} 25. Rc4 {[%emt 0:04:49]} Nc3 {[%emt 0:00:00]} 26. Rxc3 {[%emt 0:00:18]} Bxc3 {[%emt 0:00:00]} 27. Qxc3 {[%emt 0:00:08]} Rc8 {[%emt 0:00:00]} 28. Qb2 {[%emt 0:03:29]} Qc7 {[%emt 0:00:00]} 29. Rc1 {[%emt 0:04:49]} Qd8 {[%emt 0:00:00]} 30. Qd4 {[%emt 0:09:08]} Rxc1+ {[%emt 0:00:00]} 31. Bxc1 {[%emt 0:00:01]} Ra2 {[%emt 0:00:00]} 32. Bc4 {[%emt 0:03:15]} Rc2 {[%emt 0:00:00]} 33. Bb2 {[%emt 0:02:37]} f6 {[%emt 0:00:00]} 34. Bb3 {[%emt 0:01:12]} Rc8 {[%emt 0:00:00]} 35. f4 {[%emt 0:00:43]} Qf8 {[%emt 0:00:00]} 36. e5 {[%emt 0:03:43]} fxe5 {[%emt 0:00:00]} 37. fxe5 {[%emt 0:00:13]} Qg7 {[%emt 0:00:00]} 38. Qd2 {[%emt 0:02:59]} dxe5 {[%emt 0:04:58]} 39. Qe3 {[%emt 0:01:58]} (39. d6+ $142 Kh8 40. d7) 39... Qf6 {[%emt 0:01:55]} 40. d6+ {[%emt 0:00:00]} e6 {[%emt 0:00:00]} 41. Bxe5 {[%emt 0:10:22]} Qf5 {[%emt 0:01:06]} 42. h3 {[%emt 0:01:35]} Rd8 {[%emt 0:01:43]} 43. Bg3 {[%emt 0:04:17]} Kf7 {[%emt 0:00:41]} 44. Kh2 {[%emt 0:00:45]} h5 {[%emt 0:00:34] [#]} 45. Qb6 $1 {[%emt 0:01:29]} Qg5 {[%emt 0:00:52]} 46. Qxb7+ {[%emt 0:02:35]} Kg8 {[%emt 0:00:06]} 47. Bxe6+ {[%emt 0:00:32]} Kh8 {[%emt 0:00:05]} 48. Qe7 {[%emt 0:00:17]} Qxe7 {[%emt 0:00:04]} 49. dxe7 {[%emt 0:00:04]} Re8 {[%emt 0:00:02]} 50. Be5+ {[%emt 0:00:11]} Kh7 {[%emt 0:00:04]} 51. Bf6 {[%emt 0:00:11]} g5 {[%emt 0:00:04]} 52. Bf7 {[%emt 0:00:06]} Rxe7 {[%emt 0:00:04]} 53. Bxe7 {[%emt 0:00:05]} Kg7 {[%emt 0:00:04]} 54. Bxh5 {[%emt 0:00:09]} g4 {[%emt 0:00:03]} 55. hxg4 {[%emt 0:00:17]} Kh6 {[%emt 0:00:05]} 56. b5 {[%emt 0:00:07]} 1-0

[Event "IND-ch Women 2019"]
[Site "Karaikkudi"]
[Date "2019.07.19"]
[Round "1.13"]
[White "Kavitha P L"]
[Black "Mohota, Nisha"]
[Result "0-1"]
[ECO "B02"]
[WhiteElo "1580"]
[BlackElo "2221"]
[Annotator "ChessBase"]
[PlyCount "104"]
[EventDate "2019.07.19"]
[EventType "swiss"]
[EventCountry "IND"]
[SourceTitle "playchess.com"]
[Source "ChessBase"]
[SourceQuality "1"]
[TimeControl "40/5400+30:1800+30"]

1. e4 {[%emt 0:00:00]} Nf6 {[%emt 0:00:00]} 2. Nc3 {[%emt 0:00:16]} d5 {[%emt 0:00:00]} 3. exd5 {[%emt 0:03:03]} Nxd5 {[%emt 0:00:00]} 4. Nf3 {[%emt 0:03:13]} Bg4 {[%emt 0:02:20]} 5. Bc4 {[%emt 0:01:12]} e6 {[%emt 0:01:25]} 6. Bxd5 {[%emt 0:06:17]} exd5 {[%emt 0:00:07]} 7. Qe2+ {[%emt 0:00:15]} Be7 {[%emt 0:02:07]} 8. d4 {[%emt 0:17:01]} O-O {[%emt 0:02:25]} 9. O-O {[%emt 0:04:08]} Nc6 {[%emt 0:02:23]} 10. Be3 {[%emt 0:01:35]} Bf6 {[%emt 0:04:12]} 11. h3 {[%emt 0:05:39]} Be6 {[%emt 0:07:47]} 12. Rad1 {[%emt 0:01:44]} a6 {[%emt 0:01:20]} 13. Qd2 {[%emt 0:04:00]} Re8 {[%emt 0:05:16]} 14. Ne2 {[%emt 0:02:51]} Bf5 {[%emt 0:01:39]} 15. Ng3 {[%emt 0:02:23]} Bg6 {[%emt 0:01:16]} 16. Rfe1 {[%emt 0:04:35]} h5 {[%emt 0:05:42]} 17. b3 {[%emt 0:03:15]} h4 {[%emt 0:00:45]} 18. Nf1 {[%emt 0:00:10]} Bh5 {[%emt 0:05:57]} 19. N1h2 {[%emt 0:02:01]} Re4 {[%emt 0:00:32]} 20. g4 {[%emt 0:05:08]} hxg3 {[%emt 0:01:01]} 21. fxg3 {[%emt 0:00:08]} Qd7 {[%emt 0:03:05]} 22. g4 {[%emt 0:01:48]} Bg6 {[%emt 0:00:43]} 23. g5 {[%emt 0:03:13]} Be7 {[%emt 0:01:30]} 24. Qg2 {[%emt 0:01:04]} Bh5 {[%emt 0:07:32]} 25. Bf2 {[%emt 0:11:14]} Bb4 {[%emt 0:04:19]} 26. Re3 {[%emt 0:00:36]} Rae8 {[%emt 0:00:34]} 27. Rdd3 {[%emt 0:00:43]} Bd6 {[%emt 0:02:59]} 28. Nd2 {[%emt 0:01:55]} R4e7 {[%emt 0:05:25]} 29. Rxe7 {[%emt 0:04:24]} Rxe7 {[%emt 0:00:16]} 30. Ng4 {[%emt 0:03:05]} Bxg4 {[%emt 0:03:49]} 31. hxg4 {[%emt 0:00:06]} Bf4 {[%emt 0:00:42]} 32. Nf3 {[%emt 0:02:56]} Nb4 {[%emt 0:04:02]} 33. Rd1 {[%emt 0:01:59]} Nxc2 {[%emt 0:00:33]} 34. Rd3 {[%emt 0:05:03]} Re4 {[%emt 0:02:18]} 35. Qh3 {[%emt 0:00:00]} Nb4 {[%emt 0:04:09]} 36. Rd1 {[%emt 0:00:00]} Bd6 {[%emt 0:00:30]} 37. Ne5 {[%emt 0:00:00]} Bxe5 {[%emt 0:00:49]} 38. dxe5 {[%emt 0:00:00]} Qxg4+ {[%emt 0:01:22]} 39. Qxg4 {[%emt 0:00:00]} Rxg4+ {[%emt 0:00:03]} 40. Kh2 {[%emt 0:00:00]} Rxg5 {[%emt 0:00:00]} 41. a3 {[%emt 0:00:00]} Nc6 {[%emt 0:01:07]} 42. Rxd5 {[%emt 0:00:09]} Rxe5 {[%emt 0:00:16]} 43. Rd7 {[%emt 0:00:10]} Re7 {[%emt 0:00:16]} 44. Rd3 {[%emt 0:00:15]} g5 {[%emt 0:03:05]} 45. Bc5 {[%emt 0:00:14]} Re2+ {[%emt 0:00:53]} 46. Kg3 {[%emt 0:00:07]} f5 {[%emt 0:01:35]} 47. Rd5 {[%emt 0:00:17]} Ne5 {[%emt 0:03:21]} 48. Rd8+ {[%emt 0:01:21]} Kh7 {[%emt 0:00:34]} 49. Bd4 {[%emt 0:00:43]} f4+ {[%emt 0:00:40]} 50. Kh3 {[%emt 0:00:05]} g4+ {[%emt 0:00:10]} 51. Kh4 {[%emt 0:00:03]} Rh2+ {[%emt 0:00:09]} 52. Kg5 {[%emt 0:00:08]} Nf7+ {[%emt 0:00:09]} 0-1

[Event "IND-ch Women 2019"]
[Site "Karaikkudi"]
[Date "2019.07.19"]
[Round "1.14"]
[White "Priyanka, Kumari"]
[Black "Rindhiya V"]
[Result "1-0"]
[ECO "C77"]
[WhiteElo "1991"]
[BlackElo "1573"]
[Annotator "NA RC"]
[PlyCount "75"]
[EventDate "2019.07.19"]
[EventType "swiss"]
[EventCountry "IND"]
[SourceTitle "playchess.com"]
[Source "ChessBase"]
[SourceQuality "1"]
[TimeControl "40/5400+30:1800+30"]

1. e4 {[%emt 0:00:05]} e5 {[%emt 0:00:00]} 2. Nf3 {[%emt 0:00:17]} Nc6 {[%emt 0:00:00]} 3. Bb5 {[%emt 0:00:10]} a6 {[%emt 0:00:00]} 4. Ba4 {[%emt 0:00:05]} Nf6 {[%emt 0:00:00]} 5. d3 {[%emt 0:01:26]} b5 {[%emt 0:04:56]} 6. Bb3 {[%emt 0:01:51]} Be7 {[%emt 0:03:39]} 7. Nc3 {[%emt 0:01:03]} d6 {[%emt 0:00:26]} 8. a3 {[%emt 0:03:07] C77: Ruy Lopez: 3...a6 4 Ba4 Nf6, unusual lines} O-O {[%emt 0:00:24]} 9. Nd5 {[%emt 0:00:31]} h6 $146 {[%emt 0:04:07]} ({Predecessor:} 9... Na5 10. Ba2 Nxd5 11. Bxd5 c6 12. Ba2 Bf6 13. O-O Re8 14. b4 Nb7 15. c4 Be6 {½-½ (23) Rapport,R (2692)-Aronian,L (2785) Sharjah 2017}) 10. Nxf6+ {[%emt 0:04:26]} Bxf6 {[%emt 0:00:05]} 11. Bd5 {[%emt 0:00:15]} Bb7 {[%emt 0:00:32]} 12. g4 {[%emt 0:05:12]} Bh4 {[%emt 0:15:58]} 13. Rg1 {[%emt 0:04:21]} Qf6 {[%emt 0:13:50]} 14. g5 {[%emt 0:06:09]} hxg5 {[%emt 0:03:48]} 15. Nxh4 {[%emt 0:14:45]} gxh4 {[%emt 0:00:02]} 16. Bg5 {[%emt 0:04:38]} Qg6 {[%emt 0:00:08]} 17. Kf1 {[%emt 0:03:21]} Qh7 {[%emt 0:04:38]} 18. Bf6 {[%emt 0:01:25]} g6 {[%emt 0:00:04]} 19. Rg4 {[%emt 0:01:02]} Nd8 {[%emt 0:03:45]} 20. Rxh4 {[%emt 0:07:07]} Qxh4 {[%emt 0:00:02]} 21. Bxh4 {[%emt 0:00:08]} Bxd5 {[%emt 0:00:41]} 22. Bf6 {[%emt 0:03:15]} Ne6 {[%emt 0:01:38]} 23. Qg4 {[%emt 0:01:35]} Ng7 {[%emt 0:00:04]} 24. exd5 {[%emt 0:00:37]} Nh5 {[%emt 0:00:12]} 25. Qg5 {[%emt 0:00:23]} Kh7 {[%emt 0:00:06]} 26. Re1 {[%emt 0:00:20]} Rg8 {[%emt 0:00:25]} 27. Re3 {[%emt 0:00:17]} Nxf6 {[%emt 0:00:03]} 28. Qxf6 {[%emt 0:00:09]} Rg7 {[%emt 0:00:03]} 29. Rh3+ {[%emt 0:00:26]} Kg8 {[%emt 0:00:01]} 30. Qh4 {[%emt 0:00:08]} Kf8 {[%emt 0:00:07]} 31. Qf6 {[%emt 0:00:51]} Re8 {[%emt 0:00:06]} 32. Ke2 {[%emt 0:01:57]} Rg8 {[%emt 0:00:12]} 33. Rh7 {[%emt 0:00:34]} Re7 {[%emt 0:00:01]} 34. Rh8 {[%emt 0:00:37]} Re8 {[%emt 0:00:09]} 35. Rxg8+ {[%emt 0:00:22]} Kxg8 {[%emt 0:00:02]} 36. Kf3 {[%emt 0:00:56]} Rc8 {[%emt 0:00:06]} 37. Qe7 $18 {[%emt 0:00:32]} Kg7 {[%emt 0:00:06]} 38. Qd7 {[%emt 0:00:09]} 1-0